fUSD/lending_fUSD_20260202
["ID","MTS","AMOUNT","RATE_DAILY","PERIOD"]
[404279618,1770025846241,-25000.0,0.00017786,3]
[404279619,1770025846250,-25000.0,0.00017794,3]
[404279620,1770025846259,-25000.0,0.00017803,3]
[404279621,1770025846268,-25000.0,0.00017812,3]
[404279622,1770025846277,-25000.0,0.00017821,3]
[404279623,1770025846286,-25000.0,0.0001783,3]
[404279624,1770025846295,-163.0,0.0001783,2]
[404279625,1770025846304,-25000.0,0.00017838,3]
[404279626,1770025846313,-25000.0,0.00017847,3]
[404279627,1770025846322,-25000.0,0.00017856,3]
[404279628,1770025846331,-25000.0,0.00017865,3]
[404279629,1770025846339,-25000.0,0.00017874,3]
[404279630,1770025846348,-25000.0,0.00017882,3]
[404279631,1770025846357,-346.92554585,0.00017884,2]
[404279632,1770025846367,-599.60298507,0.00017885,2]
[404279633,1770025846376,-747.8093786,0.00017885,2]
[404279634,1770025846385,-209.40437684,0.00017886,2]
[404279635,1770025846395,-227.86985187,0.00017886,2]
[404279636,1770025846404,-251.11897888,0.00017886,2]
[404279637,1770025846413,-1712.93078312,0.00017886,2]
[404279638,1770025846422,-936.06414164,0.00017886,2]
[404279639,1770025846431,-25000.0,0.00017891,3]
[404279640,1770025846440,-5162.0,0.00017892,2]
[404279641,1770025846450,-25000.0,0.000179,3]
[404279642,1770025846459,-703.13852903,0.000179,2]
[404279643,1770025846472,-17205.90121961,0.000179,3]
[404279644,1770025846481,-720.83581714,0.000179,2]
[404279645,1770025846493,-199.24021691,0.000179,2]
[404279646,1770025846502,-3433.01299581,0.000179,2]
[404279647,1770025846511,-1330.2,0.00017966,2]
[404279648,1770025846520,-500.0,0.00017982,2]
[404279649,1770025846530,-5800.0,0.00017983,2]
[404279650,1770025846539,-207.0,0.00017984,2]
[404279651,1770025846548,-309.78758867,0.0001799,2]
[404279652,1770025846558,-5800.0,0.00017992,2]
[404279653,1770025846567,-5162.0,0.00017992,2]
[404279654,1770025846577,-458211.8352286,0.00017994,2]
[404279655,1770025846589,-151.0,0.00017997,2]
[404279656,1770025846598,-248.17115062,0.00017999,2]
[404279657,1770025846607,-31152.14895376,0.00017999,2]
[404279658,1770025846617,-300.0,0.00017999,2]
[404279659,1770025846627,-670.83228666,0.00017999,2]
[404279660,1770025846637,-666.0,0.00017999,2]
[404279661,1770025846648,-300.0,0.00017999,2]
[404279662,1770025846658,-150.0,0.00017999,2]
[404279663,1770025846667,-300.0,0.00017999,2]
[404279664,1770025846724,-300.0,0.00017999,2]
[404279665,1770025846735,-660.0,0.00018,2]
[404279666,1770025846745,-3508500.30005889,0.00018,2]
[404279667,1770025846938,-17733.89550933,0.00013964,2]
[404279668,1770025846947,-240.84877736,0.000179,2]
[404279669,1770025846956,-259204.5899298,0.00018,2]
[404279670,1770025846996,-1477901.69812281,0.00018,2]
[404279685,1770026008643,406.67187175,0.00013,13]
[404279686,1770026401980,294.47,0.00017225,60]
[404279792,1770027032239,-1836.97261405,0.00012231,2]
[404279793,1770027032251,-874.0,0.00012231,2]
[404279794,1770027032289,-569.1924479,0.00012231,2]
[404279795,1770027032344,-10384.50493805,0.00012231,2]
[404279796,1770027032354,-250.0,0.00012231,2]
[404279797,1770027032363,-1600.0,0.0001237,2]
[404279798,1770027032373,-250.0,0.00012438,2]
[404279799,1770027032382,-198.39137328,0.00012506,2]
[404279800,1770027032391,-166.66,0.00012606,2]
[404279801,1770027032401,-184.11,0.00012726,2]
[404279802,1770027032410,-14898.87535478,0.00012771,2]
[404279803,1770027032420,-306.04672599,0.000128,2]
[404279804,1770027032429,-151.0,0.00012807,2]
[404279805,1770027032439,-185.21557654,0.00012809,2]
[404279806,1770027032449,-175.04122155,0.00012809,2]
[404279807,1770027032458,-500.0,0.00012809,2]
[404279808,1770027032468,-170.97537312,0.00012809,2]
[404279809,1770027032477,-1200.0,0.00012809,2]
[404279810,1770027032487,-180063.81906905,0.0001281,2]
[404279811,1770027032499,-12248.23007372,0.0001281,2]
[404279813,1770027032510,-662.96,0.0001281,2]
[404279866,1770027038339,-3299.0994224,0.00012771,2]
[404279867,1770027038350,-500.0,0.00012809,2]
[404279868,1770027038359,-500.0,0.00012809,2]
[404279869,1770027038369,-500.0,0.00012809,2]
[404279870,1770027038379,-500.0,0.00012809,2]
[404279871,1770027038389,-500.0,0.00012809,2]
[404279872,1770027038399,-500.0,0.00012809,2]
[404279873,1770027038410,-500.0,0.00012809,2]
[404279874,1770027038420,-500.0,0.00012809,2]
[404279875,1770027038430,-500.0,0.00012809,2]
[404279876,1770027038440,-500.0,0.00012809,2]
[404279877,1770027038449,-443.62909288,0.00012809,2]
[404279878,1770027038459,-216.75704898,0.00012809,2]
[404279879,1770027038468,-500.0,0.00012809,2]
[404279880,1770027038478,-500.0,0.00012809,2]
[404279881,1770027038489,-151.63647784,0.00012809,2]
[404279882,1770027038514,-348.36352216,0.00012809,2]
[404279883,1770027038523,-78.25494442,0.00012809,2]
[404279884,1770027038534,-421.74505558,0.00012809,2]
[404279885,1770027038543,-500.0,0.00012809,2]
[404279886,1770027038553,-500.0,0.00012809,2]
[404279887,1770027038563,-500.0,0.00012809,2]
[404279888,1770027038573,-500.0,0.00012809,2]
[404279889,1770027038583,-500.0,0.00012809,2]
[404279890,1770027038593,-500.0,0.00012809,2]
[404279891,1770027038603,-500.0,0.00012809,2]
[404279892,1770027038613,-500.0,0.00012809,2]
[404279893,1770027038623,-500.0,0.00012809,2]
[404279894,1770027038632,-500.0,0.00012809,2]
[404279895,1770027038641,-500.0,0.00012809,2]
[404279896,1770027038650,-500.0,0.00012809,2]
[404279897,1770027038659,-500.0,0.00012809,2]
[404279898,1770027038668,-500.0,0.00012809,2]
[404279899,1770027038678,-500.0,0.00012809,2]
[404279900,1770027038687,-293.25802079,0.00012809,2]
[404279901,1770027038697,-500.0,0.00012809,2]
[404279902,1770027038707,-750.01081646,0.0001281,2]
[404279905,1770027038733,-713.27716413,0.0001281,2]
[404279925,1770027040746,-2705561.70287664,0.0001281,2]
[404279926,1770027040755,-166.66,0.00012871,2]
[404279927,1770027040764,-18572.7,0.0001291,2]
[404279928,1770027040773,-198.39137328,0.00013065,2]
[404279929,1770027040788,-13996.31710135,0.00013073,2]
[404279930,1770027040802,-5101.80671687,0.00013117,2]
[404279931,1770027040814,-166.66,0.00013137,2]
[404279932,1770027040828,-881.4146684,0.00013137,2]
[404279933,1770027040839,-427.40508538,0.00013163,2]
[404279934,1770027040848,-150.0,0.00013164,2]
[404279935,1770027040859,-200.0,0.00013165,2]
[404279936,1770027040868,-151.0,0.00013165,2]
[404279937,1770027040879,-151.0,0.00013165,2]
[404279938,1770027040888,-500.0,0.00013165,2]
[404279939,1770027040900,-500.0,0.00013165,2]
[404279940,1770027040908,-151.0,0.00013165,2]
[404279941,1770027040917,-500.0,0.00013165,2]
[404279942,1770027040926,-151.0,0.00013165,2]
[404279943,1770027040935,-500.0,0.00013165,2]
[404279944,1770027040944,-151.0,0.00013165,2]
[404279945,1770027040954,-500.0,0.00013165,2]
[404279946,1770027040963,-151.0,0.00013165,2]
[404279947,1770027040973,-500.0,0.00013165,2]
[404279948,1770027040982,-151.0,0.00013165,2]
[404279949,1770027040992,-500.0,0.00013165,2]
[404279950,1770027041001,-151.0,0.00013165,2]
[404279951,1770027041010,-500.0,0.00013165,2]
[404279952,1770027041019,-151.0,0.00013165,2]
[404279953,1770027041029,-500.0,0.00013165,2]
[404279954,1770027041038,-151.0,0.00013165,2]
[404279955,1770027041047,-500.0,0.00013165,2]
[404279956,1770027041056,-151.0,0.00013165,2]
[404279957,1770027041065,-500.0,0.00013165,2]
[404279958,1770027041074,-500.0,0.00013165,2]
[404279959,1770027041083,-151.0,0.00013165,2]
[404279960,1770027041092,-500.0,0.00013165,2]
[404279961,1770027041102,-151.0,0.00013165,2]
[404279962,1770027041111,-500.0,0.00013165,2]
[404279963,1770027041120,-151.0,0.00013165,2]
[404279964,1770027041129,-500.0,0.00013165,2]
[404279965,1770027041139,-151.0,0.00013165,2]
[404279966,1770027041149,-500.0,0.00013165,2]
[404279967,1770027041158,-151.0,0.00013165,2]
[404279968,1770027041168,-500.0,0.00013165,2]
[404279969,1770027041179,-500.0,0.00013165,2]
[404279970,1770027041189,-151.0,0.00013165,2]
[404279971,1770027041199,-500.0,0.00013165,2]
[404279972,1770027041209,-500.0,0.00013165,2]
[404279973,1770027041468,-500.0,0.00013165,2]
[404279974,1770027041482,-500.0,0.00013165,2]
[404279975,1770027041491,-151.0,0.00013165,2]
[404279976,1770027041500,-500.0,0.00013165,2]
[404279977,1770027041510,-151.0,0.00013165,2]
[404279978,1770027041519,-151.0,0.00013165,2]
[404279979,1770027041527,-151.0,0.00013165,2]
[404279980,1770027041536,-151.0,0.00013165,2]
[404279981,1770027041545,-151.0,0.00013165,2]
[404279982,1770027041554,-151.0,0.00013165,2]
[404279983,1770027041563,-151.0,0.00013165,2]
[404279984,1770027041572,-151.0,0.00013165,2]
[404279985,1770027041581,-151.0,0.00013165,2]
[404279986,1770027041590,-151.0,0.00013165,2]
[404279987,1770027041599,-151.0,0.00013165,2]
[404279988,1770027041608,-200.0,0.00013165,2]
[404279989,1770027041617,-151.0,0.00013165,2]
[404279990,1770027041627,-151.0,0.00013165,2]
[404279991,1770027041636,-9999.99,0.00013171,2]
[404279992,1770027041645,-5935.32,0.00013171,2]
[404279993,1770027041654,-150.99,0.00013171,2]
[404279994,1770027041663,-2376.32,0.00013171,2]
[404279995,1770027041672,-999.99,0.00013171,2]
[404279996,1770027041681,-9999.99,0.00013171,2]
[404279997,1770027041690,-388.17458479,0.00013172,2]
[404279998,1770027041699,-150.99,0.00013172,2]
[404279999,1770027041709,-33906.84560869,0.00013172,2]
[404280000,1770027041718,-1408.0,0.00013172,2]
[404280001,1770027041727,-2500.0,0.00013263,2]
[404280002,1770027041737,-10000.0,0.00013273,2]
[404280003,1770027041747,-703.13852903,0.00013273,2]
[404280004,1770027041756,-720.83581716,0.00013273,2]
[404280005,1770027041765,-199.24021692,0.00013302,2]
[404280006,1770027041774,-14898.8753547,0.0001334,2]
[404280007,1770027041784,-151.0,0.0001337,2]
[404280008,1770027041793,-1000.0,0.00013373,2]
[404280009,1770027041802,-20406.3363,0.00013373,2]
[404280010,1770027041811,-166.66,0.00013402,2]
[404280011,1770027041824,-2096.85,0.00013425,2]
[404280012,1770027041836,-710.0,0.00013474,2]
[404280013,1770027041845,-52351.12,0.0001349,2]
[404280014,1770027041855,-250.0,0.00013607,2]
[404280015,1770027041865,-300.0,0.00013607,2]
[404280016,1770027041876,-250.0,0.00013607,2]
[404280017,1770027041887,-13996.31710134,0.00013607,2]
[404280018,1770027041897,-166.66,0.00013667,2]
[404280019,1770027041908,-500.0,0.00013698,2]
[404280020,1770027041917,-310.72048062,0.00013698,2]
[404280021,1770027041928,-500.89475649,0.00013698,2]
[404280022,1770027041938,-506.4463116,0.00013698,2]
[404280023,1770027041948,-500.0,0.00013698,2]
[404280024,1770027041957,-500.0,0.00013698,2]
[404280025,1770027041966,-500.0,0.00013698,2]
[404280026,1770027041976,-500.0,0.00013698,2]
[404280027,1770027041985,-503.69401691,0.00013698,2]
[404280028,1770027041996,-500.0,0.00013698,2]
[404280029,1770027042005,-500.0,0.00013698,2]
[404280030,1770027042014,-500.0,0.00013698,2]
[404280031,1770027042024,-500.0,0.00013698,2]
[404280032,1770027042034,-500.0,0.00013698,2]
[404280033,1770027042044,-500.0,0.00013698,2]
[404280034,1770027042054,-500.0,0.00013698,2]
[404280035,1770027042063,-519.14978785,0.00013698,2]
[404280036,1770027042072,-500.0,0.00013698,2]
[404280037,1770027042082,-500.0,0.00013698,2]
[404280038,1770027042092,-500.0,0.00013698,2]
[404280039,1770027042102,-500.0,0.00013698,2]
[404280040,1770027042113,-523.26417397,0.00013698,2]
[404280041,1770027042125,-500.0,0.00013698,2]
[404280042,1770027042134,-500.0,0.00013698,2]
[404280043,1770027042144,-587.5541255,0.00013698,2]
[404280044,1770027042154,-500.0,0.00013698,2]
[404280045,1770027042165,-500.0,0.00013698,2]
[404280046,1770027042175,-500.0,0.00013698,2]
[404280047,1770027042185,-500.0,0.00013698,2]
[404280048,1770027042194,-496.93460441,0.00013698,2]
[404280049,1770027042203,-500.0,0.00013698,2]
[404280050,1770027042212,-500.0,0.00013698,2]
[404280051,1770027042222,-500.0,0.00013698,2]
[404280052,1770027042231,-500.0,0.00013698,2]
[404280053,1770027042242,-500.0,0.00013698,2]
[404280054,1770027042251,-500.0,0.00013698,2]
[404280055,1770027042260,-500.0,0.00013698,2]
[404280056,1770027042270,-500.0,0.00013698,2]
[404280057,1770027042280,-500.0,0.00013698,2]
[404280058,1770027042290,-159.30915247,0.00013698,2]
[404280059,1770027042299,-500.0,0.00013698,2]
[404280060,1770027042309,-500.0,0.00013698,2]
[404280061,1770027042318,-500.0,0.00013698,2]
[404280062,1770027042328,-500.0,0.00013698,2]
[404280063,1770027042337,-500.0,0.00013698,2]
[404280064,1770027042347,-500.0,0.00013698,2]
[404280065,1770027042357,-500.0,0.00013698,2]
[404280066,1770027042367,-500.0,0.00013698,2]
[404280067,1770027042376,-500.0,0.00013698,2]
[404280068,1770027042385,-500.0,0.00013698,2]
[404280069,1770027042394,-500.0,0.00013698,2]
[404280070,1770027042404,-500.0,0.00013698,2]
[404280071,1770027042414,-504.83472388,0.00013698,2]
[404280072,1770027042423,-500.0,0.00013698,2]
[404280073,1770027042432,-500.0,0.00013698,2]
[404280074,1770027042441,-500.0,0.00013698,2]
[404280075,1770027042450,-352.84918147,0.00013698,2]
[404280076,1770027042459,-500.0,0.00013698,2]
[404280077,1770027042469,-500.0,0.00013698,2]
[404280078,1770027042479,-500.0,0.00013698,2]
[404280079,1770027042488,-202.25964161,0.00013713,2]
[404280080,1770027042500,-500.0,0.00013713,2]
[404280081,1770027042509,-427.40508532,0.0001384,2]
[404280082,1770027042518,-300.0,0.00013866,2]
[404280083,1770027042527,-195.0,0.00013866,2]
[404280084,1770027042537,-14898.8753547,0.00013909,2]
[404280085,1770027042546,-1600.0,0.00013916,2]
[404280086,1770027042556,-166.66,0.00013933,2]
[404280087,1770027042566,-500.0,0.00013973,2]
[404280088,1770027042575,-500.0,0.00013973,2]
[404280089,1770027042584,-500.7756559,0.00013973,2]
[404280090,1770027042594,-501.3792678,0.00013973,2]
[404280091,1770027042605,-500.0,0.00013973,2]
[404280092,1770027042614,-500.0,0.00013973,2]
[404280093,1770027042623,-177.72668829,0.00013973,2]
[404280094,1770027042632,-500.0,0.00013973,2]
[404280095,1770027042643,-500.0,0.00013973,2]
[404280096,1770027042653,-500.88887474,0.00013973,2]
[404280097,1770027042663,-500.125501,0.00013973,2]
[404280098,1770027042673,-500.0,0.00013973,2]
[404280099,1770027042682,-501.73498825,0.00013973,2]
[404280100,1770027042693,-561.85744553,0.00013973,2]
[404280101,1770027042703,-500.0,0.00013973,2]
[404280102,1770027042713,-500.0,0.00013973,2]
[404280103,1770027042722,-500.0,0.00013973,2]
[404280104,1770027042733,-500.0,0.00013973,2]
[404280105,1770027042743,-1680.0,0.00014089,2]
[404280106,1770027042753,-13996.31710134,0.00014142,2]
[404280107,1770027042763,-500.0,0.00014261,2]
[404280108,1770027042773,-255.0,0.0001427,2]
[404280109,1770027042782,-163.38,0.00014273,2]
[404280110,1770027042792,-173.92,0.00014429,2]
[404280111,1770027042801,-14898.8753547,0.00014478,2]
[404280112,1770027042811,-427.40508532,0.00014516,2]
[404280113,1770027042823,-463.7080185,0.00014521,2]
[404280114,1770027042833,-1000.0,0.00014521,2]
[404280115,1770027042842,-845.5316297,0.00014521,2]
[404280116,1770027042853,-445.7560689,0.00014521,2]
[404280117,1770027042864,-1142.79089811,0.00014521,2]
[404280118,1770027042873,-1000.0,0.00014521,2]
[404280119,1770027042882,-13996.31710134,0.00014676,2]
[404280120,1770027042892,-500.0,0.00014809,2]
[404280121,1770027042901,-179.5507367,0.000149,2]
[404280122,1770027042912,-250.0,0.00015,2]
[404280123,1770027042921,-14898.8753547,0.00015047,2]
[404280124,1770027042931,-1500.0,0.00015068,2]
[404280125,1770027042941,-179.20533301,0.00015068,2]
[404280126,1770027042951,-486.88,0.00015068,2]
[404280127,1770027042961,-306.04672599,0.000151,2]
[404280128,1770027042971,-46638.69,0.0001511,2]
[404280129,1770027042981,-427.40508532,0.00015193,2]
[404280130,1770027042990,-13996.31710134,0.0001521,2]
[404280131,1770027042999,-500.0,0.00015357,2]
[404280132,1770027043009,-1600.0,0.00015462,2]
[404280133,1770027043019,-195.0,0.00015468,2]
[404280134,1770027043029,-501.94112039,0.00015473,2]
[404280135,1770027043039,-500.0,0.00015473,2]
[404280136,1770027043048,-500.0,0.00015473,2]
[404280137,1770027043059,-500.0,0.00015473,2]
[404280138,1770027043068,-500.0,0.00015473,2]
[404280139,1770027043077,-500.0,0.00015473,2]
[404280140,1770027043086,-500.0,0.00015473,2]
[404280141,1770027043095,-500.0,0.00015473,2]
[404280142,1770027043103,-500.0,0.00015473,2]
[404280143,1770027043114,-500.0,0.00015473,2]
[404280144,1770027043123,-500.0,0.00015473,2]
[404280145,1770027043132,-500.0,0.00015473,2]
[404280146,1770027043142,-500.0,0.00015473,2]
[404280147,1770027043151,-500.0,0.00015473,2]
[404280148,1770027043162,-500.0,0.00015473,2]
[404280149,1770027043172,-500.0,0.00015473,2]
[404280150,1770027043182,-500.0,0.00015473,2]
[404280151,1770027043192,-500.62937167,0.00015473,2]
[404280152,1770027043202,-500.0,0.00015473,2]
[404280153,1770027043210,-586.45296103,0.00015473,2]
[404280154,1770027043221,-500.0,0.00015473,2]
[404280155,1770027043231,-500.0,0.00015473,2]
[404280156,1770027043241,-500.0,0.00015473,2]
[404280157,1770027043251,-500.0,0.00015473,2]
[404280158,1770027043260,-500.0,0.00015473,2]
[404280159,1770027043269,-261.27528148,0.00015473,2]
[404280160,1770027043280,-500.0,0.00015473,2]
[404280161,1770027043295,-500.0,0.00015473,2]
[404280162,1770027043309,-503.56149344,0.00015473,2]
[404280163,1770027043321,-500.0,0.00015473,2]
[404280164,1770027043332,-500.0,0.00015473,2]
[404280165,1770027043344,-500.0,0.00015473,2]
[404280166,1770027043356,-500.0,0.00015473,2]
[404280167,1770027043368,-500.0,0.00015473,2]
[404280168,1770027043384,-500.0,0.00015473,2]
[404280169,1770027043396,-500.0,0.00015473,2]
[404280170,1770027043408,-500.0,0.00015473,2]
[404280171,1770027043421,-500.0,0.00015473,2]
[404280172,1770027043433,-500.0,0.00015473,2]
[404280173,1770027043445,-1183.71644684,0.00015473,2]
[404280174,1770027043456,-500.0,0.00015473,2]
[404280175,1770027043466,-2351.0,0.00015498,2]
[404280176,1770027043476,-14898.8753547,0.00015616,2]
[404280177,1770027043487,-277.64620196,0.00015616,2]
[404280178,1770027043501,-232.68774879,0.00015702,2]
[404280179,1770027043513,-250.0,0.00015702,2]
[404280180,1770027043524,-250.0,0.00015702,2]
[404280181,1770027043536,-250.0,0.00015702,2]
[404280182,1770027043547,-250.0,0.00015702,2]
[404280183,1770027043560,-209.40437684,0.00015702,2]
[404280184,1770027043571,-250.0,0.00015702,2]
[404280185,1770027043584,-250.0,0.00015702,2]
[404280186,1770027043596,-250.0,0.00015702,2]
[404280187,1770027043607,-250.0,0.00015702,2]
[404280188,1770027043620,-209.40437684,0.00015702,2]
[404280189,1770027043632,-250.0,0.00015702,2]
[404280190,1770027043646,-250.0,0.00015702,2]
[404280191,1770027043658,-250.0,0.00015702,2]
[404280192,1770027043670,-1428.38747117,0.00015702,2]
[404280193,1770027043681,-500.0,0.00015702,2]
[404280194,1770027043692,-500.0,0.00015702,2]
[404280195,1770027043705,-209.40437684,0.00015702,2]
[404280196,1770027043716,-322.6107,0.00015702,2]
[404280197,1770027043731,-174.61919141,0.00015702,2]
[404280198,1770027043745,-721.12765535,0.00015702,2]
[404280199,1770027043756,-859.80605061,0.00015702,2]
[404280200,1770027043768,-578.20924308,0.00015702,2]
[404280201,1770027043782,-277.35679052,0.00015702,2]
[404280202,1770027043793,-151.0,0.00015702,2]
[404280203,1770027043803,-13996.31710134,0.00015745,2]
[404280204,1770027043814,-217.15233878,0.00015757,2]
[404280205,1770027043828,-225.18697532,0.00015812,2]
[404280206,1770027043842,-343.71080032,0.00015829,2]
[404280207,1770027043855,-907.05824007,0.00015829,2]
[404280208,1770027043865,-1600.15825253,0.00015829,2]
[404280209,1770027043876,-233.51889341,0.00015867,2]
[404280210,1770027043885,-427.40508532,0.0001587,2]
[404280211,1770027043896,-500.0,0.00015905,2]
[404280213,1770027043909,-715.94,0.00015918,2]
[404280215,1770027043922,-242.15909246,0.00015922,2]
[404280217,1770027043934,-251.11897888,0.00015977,2]
[404280218,1770027043945,-160.29,0.00016,2]
[404280220,1770027043955,-159.99318318,0.00016008,2]
[404280221,1770027043965,-1000.0,0.00016021,2]
[404280223,1770027043976,-503.27979337,0.00016021,2]
[404280225,1770027043988,-1000.0,0.00016021,2]
[404280227,1770027043999,-1000.0,0.00016021,2]
[404280229,1770027044009,-1000.0,0.00016021,2]
[404280231,1770027044020,-1000.0,0.00016021,2]
[404280233,1770027044032,-1005.45817911,0.00016021,2]
[404280235,1770027044043,-240.83933027,0.00016021,2]
[404280236,1770027044054,-1000.0,0.00016021,2]
[404280237,1770027044065,-1000.0,0.00016021,2]
[404280238,1770027044076,-1000.0,0.00016021,2]
[404280239,1770027044087,-399.10712823,0.00016021,2]
[404280240,1770027044098,-503.91068608,0.00016021,2]
[404280241,1770027044109,-1000.0,0.00016021,2]
[404280242,1770027044122,-1124.86514765,0.00016021,2]
[404280243,1770027044134,-1000.0,0.00016021,2]
[404280244,1770027044145,-504.30163313,0.00016021,2]
[404280245,1770027044155,-1000.0,0.00016021,2]
[404280246,1770027044167,-1000.0,0.00016021,2]
[404280247,1770027044177,-1000.0,0.00016021,2]
[404280248,1770027044189,-1000.0,0.00016021,2]
[404280249,1770027044200,-1000.0,0.00016021,2]
[404280250,1770027044212,-1000.0,0.00016021,2]
[404280251,1770027044223,-504.6853335,0.00016021,2]
[404280252,1770027044235,-1000.0,0.00016021,2]
[404280253,1770027044247,-518.80564021,0.00016021,2]
[404280254,1770027044258,-1005.54193795,0.00016021,2]
[404280255,1770027044269,-1005.24936027,0.00016021,2]
[404280256,1770027044280,-276.88278142,0.00016021,2]
[404280257,1770027044290,-1000.0,0.00016021,2]
[404280258,1770027044301,-1000.0,0.00016021,2]
[404280259,1770027044312,-1000.0,0.00016021,2]
[404280260,1770027044323,-260.4103811,0.00016032,2]
[404280261,1770027044335,-270.0455652,0.00016087,2]
[404280262,1770027044346,-3412.42,0.00016116,2]
[404280263,1770027044356,-280.03725112,0.00016142,2]
[404280264,1770027044367,-305.66548204,0.00016177,2]
[404280265,1770027044379,-14898.8753547,0.00016185,2]
[404280266,1770027044390,-290.39862941,0.00016197,2]
[404280267,1770027044402,-217.15233878,0.0001625,2]
[404280268,1770027044414,-1481.23780761,0.0001625,2]
[404280269,1770027044424,-217.15233878,0.0001625,2]
[404280270,1770027044435,-181.08010149,0.0001625,2]
[404280271,1770027044445,-891.61887448,0.0001625,2]
[404280272,1770027044456,-168.90333538,0.0001625,2]
[404280273,1770027044467,-151.49674582,0.0001625,2]
[404280274,1770027044477,-301.1433787,0.00016252,2]
[404280275,1770027044488,-13996.31710134,0.00016279,2]
[404280276,1770027044500,-1000.0,0.00016344,2]
[404280277,1770027044511,-1000.0,0.00016344,2]
[404280278,1770027044522,-1000.0,0.00016344,2]
[404280279,1770027044533,-413.69756241,0.00016344,2]
[404280280,1770027044544,-250.0,0.00016345,2]
[404280281,1770027044556,-839.0,0.000164,2]
[404280282,1770027044567,-163.0,0.000164,2]
[404280283,1770027044579,-809.0,0.000164,2]
[404280284,1770027044592,-839.0,0.000164,2]
[404280285,1770027044603,-1872.11781497,0.00016438,2]
[404280286,1770027044617,-1330.2,0.00016438,2]
[404280287,1770027044629,-500.0,0.00016438,2]
[404280288,1770027044642,-583.52076571,0.00016438,2]
[404280289,1770027044653,-1302.06275666,0.00016438,2]
[404280290,1770027044664,-1302.06275666,0.00016438,2]
[404280291,1770027044677,-1302.06275666,0.00016438,2]
[404280292,1770027044690,-1302.06275666,0.00016438,2]
[404280293,1770027044700,-1302.06275666,0.00016438,2]
[404280294,1770027044711,-1302.06275666,0.00016438,2]
[404280295,1770027044722,-1302.06275666,0.00016438,2]
[404280296,1770027044732,-1302.06275666,0.00016438,2]
[404280297,1770027044745,-1302.06275666,0.00016438,2]
[404280298,1770027044756,-1302.06275666,0.00016438,2]
[404280299,1770027044767,-1302.06275666,0.00016438,2]
[404280300,1770027044779,-1302.06275666,0.00016438,2]
[404280301,1770027044790,-1302.06275666,0.00016438,2]
[404280302,1770027044801,-1302.06275666,0.00016438,2]
[404280303,1770027044813,-1302.06275666,0.00016438,2]
[404280304,1770027044826,-1302.06275666,0.00016438,2]
[404280305,1770027044842,-1302.06275666,0.00016438,2]
[404280306,1770027044854,-1302.06275666,0.00016438,2]
[404280307,1770027044867,-1302.06275666,0.00016438,2]
[404280308,1770027044881,-1302.06275666,0.00016438,2]
[404280309,1770027044893,-1302.06275666,0.00016438,2]
[404280310,1770027044904,-1302.06275666,0.00016438,2]
[404280311,1770027044918,-1302.06275666,0.00016438,2]
[404280312,1770027044930,-1302.06275666,0.00016438,2]
[404280313,1770027044942,-1302.06275666,0.00016438,2]
[404280314,1770027044954,-1302.06275666,0.00016438,2]
[404280315,1770027044964,-1302.06275666,0.00016438,2]
[404280316,1770027044976,-1302.06275666,0.00016438,2]
[404280317,1770027044987,-1302.06275666,0.00016438,2]
[404280318,1770027045000,-1302.06275666,0.00016438,2]
[404280319,1770027045012,-1302.06275666,0.00016438,2]
[404280320,1770027045023,-1302.06275666,0.00016438,2]
[404280321,1770027045035,-1302.06275666,0.00016438,2]